[Event "Titled Tuesday Blitz May 16 Late 2023"]
[White "Aggelis, Nikolaos"]
[Black "Rodriguez Polo, Mateo"]
[WhiteFideId "4213220"]
[BlackFideId "24509396"]
[WhiteElo "2189"]
[BlackElo "2117"]
[Result "0-1"]
[Round "01"]
[TimeControl "180+2"]
[Date "2023.05.16"]
[WhiteClock "0:00:11"]
[BlackClock "0:00:11"]

1. c4 {[%clk 0:02:52]}  Nf6 {[%clk 0:02:58]} 2. d3 {[%clk 0:02:48]}  e6 {[%clk 0:02:59]} 3. Nf3 {[%clk 0:02:47]}  d5 {[%clk 0:02:59]} 4. d4 {[%clk 0:02:44]}  Be7 {[%clk 0:02:51]} 5. g3 {[%clk 0:02:26]}  O-O {[%clk 0:02:50]} 6. Bg2 {[%clk 0:02:25]}  dxc4 {[%clk 0:02:47]} 7. O-O {[%clk 0:02:09]}  Nc6 {[%clk 0:02:41]} 8. e3 {[%clk 0:02:06]}  Rb8 {[%clk 0:02:40]} 9. a4 {[%clk 0:02:06]}  a6 {[%clk 0:02:40]} 10. a5 {[%clk 0:02:06]}  Bb4 {[%clk 0:02:39]} 11. Nbd2 {[%clk 0:02:04]}  Nxa5 {[%clk 0:02:31]} 12. Rxa5 {[%clk 0:02:03]}  Bxa5 {[%clk 0:02:27]} 13. Nxc4 {[%clk 0:02:04]}  Bb4 {[%clk 0:02:22]} 14. Qb3 {[%clk 0:02:03]}  Be7 {[%clk 0:02:18]} 15. Nfe5 {[%clk 0:02:00]}  Bd7 {[%clk 0:02:15]} 16. Bd2 {[%clk 0:01:59]}  Bb5 {[%clk 0:02:11]} 17. Rc1 {[%clk 0:01:58]}  Bxc4 {[%clk 0:02:08]} 18. Qxc4 {[%clk 0:01:56]}  c6 {[%clk 0:02:06]} 19. Qa4 {[%clk 0:01:53]}  Nd5 {[%clk 0:02:01]} 20. Ba5 {[%clk 0:01:53]}  Qd6 {[%clk 0:01:57]} 21. Nc4 {[%clk 0:01:51]}  Qd7 {[%clk 0:01:52]} 22. e4 {[%clk 0:01:42]}  Nf6 {[%clk 0:01:36]} 23. Nb6 {[%clk 0:01:38]}  Qe8 {[%clk 0:01:30]} 24. Qc4 {[%clk 0:01:21]}  Nd7 {[%clk 0:01:28]} 25. h4 {[%clk 0:01:18]}  Nxb6 {[%clk 0:01:27]} 26. Bxb6 {[%clk 0:01:19]}  Qd7 {[%clk 0:01:24]} 27. Bh3 {[%clk 0:01:03]}  Bd8 {[%clk 0:01:22]} 28. Bc5 {[%clk 0:01:03]}  Be7 {[%clk 0:01:22]} 29. Bb6 {[%clk 0:01:02]}  Qd6 {[%clk 0:01:13]} 30. Bc5 {[%clk 0:00:54]}  Qd8 {[%clk 0:01:13]} 31. b4 {[%clk 0:00:43]}  b6 {[%clk 0:01:04]} 32. Bxe7 {[%clk 0:00:41]}  Qxe7 {[%clk 0:01:05]} 33. Rb1 {[%clk 0:00:38]}  c5 {[%clk 0:00:57]} 34. bxc5 {[%clk 0:00:34]}  bxc5 {[%clk 0:00:58]} 35. Rxb8 {[%clk 0:00:34]}  Rxb8 {[%clk 0:00:59]} 36. dxc5 {[%clk 0:00:33]}  Rc8 {[%clk 0:00:59]} 37. Qxa6 {[%clk 0:00:32]}  Qxc5 {[%clk 0:00:57]} 38. Qe2 {[%clk 0:00:32]}  Qc1+ {[%clk 0:00:57]} 39. Bf1 {[%clk 0:00:30]}  g6 {[%clk 0:00:52]} 40. h5 {[%clk 0:00:28]}  Qa1 {[%clk 0:00:39]} 41. Kg2 {[%clk 0:00:27]}  Rc1 {[%clk 0:00:38]} 42. Qb5 {[%clk 0:00:15]}  gxh5 {[%clk 0:00:34]} 43. Qg5+ {[%clk 0:00:13]}  Kf8 {[%clk 0:00:32]} 44. Qd8+ {[%clk 0:00:14]}  Kg7 {[%clk 0:00:26]} 45. Qg5+ {[%clk 0:00:14]}  Kf8 {[%clk 0:00:13]} 46. Qd8+ {[%clk 0:00:14]}  Kg7 {[%clk 0:00:09]} 47. Qg5+ {[%clk 0:00:14]}  Kh8 {[%clk 0:00:07]} 48. Qe7 {[%clk 0:00:07]}  Qg7 {[%clk 0:00:02]} 49. Qe8+ {[%clk 0:00:07]}  Qg8 {[%clk 0:00:02]} 50. Qe7 {[%clk 0:00:07]}  Rc8 {[%clk 0:00:03]} 51. Qf6+ {[%clk 0:00:07]}  Qg7 {[%clk 0:00:02]} 52. Qh4 {[%clk 0:00:08]}  Rg8 {[%clk 0:00:03]} 53. Be2 {[%clk 0:00:08]}  Qg5 {[%clk 0:00:02]} 54. Qxh5 {[%clk 0:00:08]}  Qxh5 {[%clk 0:00:02]} 55. Bxh5 {[%clk 0:00:09]}  Rf8 {[%clk 0:00:03]} 56. Kf3 {[%clk 0:00:08]}  Kg7 {[%clk 0:00:04]} 57. Kf4 {[%clk 0:00:09]}  Rb8 {[%clk 0:00:04]} 58. Be2 {[%clk 0:00:08]}  Rb2 {[%clk 0:00:05]} 59. Kf3 {[%clk 0:00:08]}  f6 {[%clk 0:00:06]} 60. Bc4 {[%clk 0:00:08]}  e5 {[%clk 0:00:07]} 61. Be6 {[%clk 0:00:08]}  Kg6 {[%clk 0:00:07]} 62. Bf5+ {[%clk 0:00:08]}  Kg7 {[%clk 0:00:06]} 63. Kg2 {[%clk 0:00:09]}  h5 {[%clk 0:00:05]} 64. Kf3 {[%clk 0:00:08]}  Kh6 {[%clk 0:00:06]} 65. Bd7 {[%clk 0:00:08]}  Kg5 {[%clk 0:00:06]} 66. Be8 {[%clk 0:00:08]}  Rb8 {[%clk 0:00:06]} 67. Bd7 {[%clk 0:00:08]}  Rd8 {[%clk 0:00:06]} 68. Bf5 {[%clk 0:00:09]}  Rd3+ {[%clk 0:00:07]} 69. Ke2 {[%clk 0:00:09]}  Ra3 {[%clk 0:00:07]} 70. Kf1 {[%clk 0:00:08]}  Rf3 {[%clk 0:00:06]} 71. Kg2 {[%clk 0:00:08]}  Rxf5 {[%clk 0:00:07]} 72. exf5 {[%clk 0:00:08]}  Kxf5 {[%clk 0:00:08]} 73. Kh3 {[%clk 0:00:08]}  Kg5 {[%clk 0:00:08]} 74. f3 {[%clk 0:00:08]}  f5 {[%clk 0:00:09]} 75. Kg2 {[%clk 0:00:09]}  e4 {[%clk 0:00:06]} 76. fxe4 {[%clk 0:00:09]}  fxe4 {[%clk 0:00:07]} 77. Kf2 {[%clk 0:00:10]}  Kg4 {[%clk 0:00:08]} 78. Ke3 {[%clk 0:00:11]}  Kxg3 {[%clk 0:00:09]} 79. Kxe4 {[%clk 0:00:11]}  h4 {[%clk 0:00:10]} 80. Ke3 {[%clk 0:00:12]}  h3 {[%clk 0:00:10]} 81. Ke2 {[%clk 0:00:11]}  Kg2 {[%clk 0:00:11]} 0-1


[Site "https://www.chess.com"]

[Event "Titled Tuesday Blitz May 16 Late 2023"]
[White "Bruedigam, Martin"]
[Black "Kovacevic, Radmila"]
[WhiteFideId "24608033"]
[BlackFideId "933171"]
[WhiteElo "2331"]
[BlackElo "2194"]
[Result "0-1"]
[Round "01"]
[TimeControl "180+2"]
[Date "2023.05.16"]
[WhiteClock "0:00:00"]
[BlackClock "0:00:48"]

1. d4 {[%clk 0:02:58]}  e5 {[%clk 0:02:58]} 2. dxe5 {[%clk 0:02:57]}  Nc6 {[%clk 0:02:58]} 3. Nf3 {[%clk 0:02:56]}  Qe7 {[%clk 0:02:58]} 4. Qd5 {[%clk 0:02:48]}  f6 {[%clk 0:02:58]} 5. exf6 {[%clk 0:02:45]}  Nxf6 {[%clk 0:02:59]} 6. Qd1 {[%clk 0:02:41]}  d5 {[%clk 0:03:00]} 7. e3 {[%clk 0:02:34]}  Bg4 {[%clk 0:02:54]} 8. Be2 {[%clk 0:02:25]}  O-O-O {[%clk 0:02:54]} 9. c3 {[%clk 0:02:24]}  Ne4 {[%clk 0:02:44]} 10. Nbd2 {[%clk 0:01:58]}  h5 {[%clk 0:02:13]} 11. Nd4 {[%clk 0:01:44]}  Ne5 {[%clk 0:02:05]} 12. N2f3 {[%clk 0:01:24]}  Qf6 {[%clk 0:01:52]} 13. h3 {[%clk 0:01:10]}  c5 {[%clk 0:01:40]} 14. Nb5 {[%clk 0:00:46]}  Be6 {[%clk 0:01:20]} 15. Nxa7+ {[%clk 0:00:40]}  Kb8 {[%clk 0:01:17]} 16. Nb5 {[%clk 0:00:36]}  g5 {[%clk 0:01:08]} 17. Qa4 {[%clk 0:00:28]}  Nc6 {[%clk 0:01:07]} 18. Rf1 {[%clk 0:00:13]}  Bg7 {[%clk 0:01:06]} 19. Bd2 {[%clk 0:00:13]}  g4 {[%clk 0:01:04]} 20. Ng1 {[%clk 0:00:12]}  Nxd2 {[%clk 0:00:59]} 21. Kxd2 {[%clk 0:00:13]}  d4 {[%clk 0:01:00]} 22. cxd4 {[%clk 0:00:11]}  cxd4 {[%clk 0:00:59]} 23. exd4 {[%clk 0:00:09]}  Qg5+ {[%clk 0:00:56]} 24. Ke1 {[%clk 0:00:08]}  Bxd4 {[%clk 0:00:53]} 25. Rd1 {[%clk 0:00:05]}  Bc5 {[%clk 0:00:52]} 26. f4 {[%clk 0:00:03]}  gxf3 {[%clk 0:00:49]} 27. Nxf3 {[%clk 0:00:00]}  Qg3+ {[%clk 0:00:48]} 0-1


[Site "https://www.chess.com"]

[Event "Titled Tuesday Blitz May 16 Late 2023"]
[White "AyMitecK"]
[Black "Sailer, Mike"]
[BlackFideId "2012901"]
[WhiteElo "2554"]
[BlackElo "2109"]
[Result "1-0"]
[Round "01"]
[TimeControl "180+2"]
[Date "2023.05.16"]
[WhiteClock "0:00:55"]
[BlackClock "0:01:14"]

1. e4 {[%clk 0:02:59]}  d5 {[%clk 0:02:58]} 2. exd5 {[%clk 0:02:59]}  Qxd5 {[%clk 0:02:59]} 3. Nc3 {[%clk 0:03:00]}  Qd6 {[%clk 0:03:00]} 4. d4 {[%clk 0:03:01]}  Nf6 {[%clk 0:03:00]} 5. Nf3 {[%clk 0:03:02]}  c6 {[%clk 0:03:01]} 6. Ne5 {[%clk 0:03:03]}  Nbd7 {[%clk 0:03:01]} 7. f4 {[%clk 0:03:02]}  g6 {[%clk 0:02:48]} 8. Bc4 {[%clk 0:03:02]}  e6 {[%clk 0:02:47]} 9. O-O {[%clk 0:03:01]}  Bg7 {[%clk 0:02:48]} 10. Be3 {[%clk 0:02:53]}  O-O {[%clk 0:02:48]} 11. Kh1 {[%clk 0:02:53]}  b6 {[%clk 0:02:40]} 12. Qf3 {[%clk 0:02:52]}  Bb7 {[%clk 0:02:39]} 13. Qh3 {[%clk 0:02:52]}  Nd5 {[%clk 0:02:20]} 14. Ne4 {[%clk 0:02:47]}  Qe7 {[%clk 0:02:19]} 15. Bd2 {[%clk 0:02:28]}  c5 {[%clk 0:02:06]} 16. Nxd7 {[%clk 0:02:00]}  Qxd7 {[%clk 0:02:02]} 17. dxc5 {[%clk 0:02:01]}  Bxb2 {[%clk 0:01:51]} 18. c3 {[%clk 0:01:44]}  Bxa1 {[%clk 0:01:42]} 19. Bxd5 {[%clk 0:01:44]}  f5 {[%clk 0:01:33]} 20. Bxb7 {[%clk 0:01:19]}  Qxb7 {[%clk 0:01:22]} 21. Nd6 {[%clk 0:00:59]}  Rfd8 {[%clk 0:01:20]} 22. Rxa1 {[%clk 0:00:58]}  bxc5 {[%clk 0:01:14]} 23. Nxb7 {[%clk 0:00:55]} 1-0


[Site "https://www.chess.com"]

[Event "Titled Tuesday Blitz May 16 Late 2023"]
[White "KSho99"]
[Black "Haszon, David"]
[BlackFideId "733610"]
[WhiteElo "2158"]
[BlackElo "2210"]
[Result "0-1"]
[Round "01"]
[TimeControl "180+2"]
[Date "2023.05.16"]
[WhiteClock "0:00:00"]
[BlackClock "0:00:51"]

1. Nf3 {[%clk 0:02:58]}  Nf6 {[%clk 0:03:00]} 2. e3 {[%clk 0:02:58]}  e6 {[%clk 0:03:01]} 3. d4 {[%clk 0:02:57]}  d5 {[%clk 0:03:02]} 4. Bd3 {[%clk 0:02:57]}  Be7 {[%clk 0:03:03]} 5. b3 {[%clk 0:02:53]}  O-O {[%clk 0:03:02]} 6. Bb2 {[%clk 0:02:53]}  a5 {[%clk 0:02:59]} 7. O-O {[%clk 0:02:40]}  a4 {[%clk 0:02:51]} 8. Ne5 {[%clk 0:02:38]}  Nc6 {[%clk 0:02:37]} 9. Nxc6 {[%clk 0:02:03]}  bxc6 {[%clk 0:02:38]} 10. bxa4 {[%clk 0:02:04]}  Rxa4 {[%clk 0:02:27]} 11. c4 {[%clk 0:02:03]}  Ra8 {[%clk 0:02:24]} 12. c5 {[%clk 0:01:58]}  Ba6 {[%clk 0:02:07]} 13. Nc3 {[%clk 0:01:46]}  Nd7 {[%clk 0:01:56]} 14. f4 {[%clk 0:01:20]}  g6 {[%clk 0:01:38]} 15. a4 {[%clk 0:01:07]}  Bf6 {[%clk 0:01:26]} 16. Bxa6 {[%clk 0:00:51]}  Rxa6 {[%clk 0:01:27]} 17. Qd3 {[%clk 0:00:51]}  Ra5 {[%clk 0:01:21]} 18. Ra3 {[%clk 0:00:41]}  Qa8 {[%clk 0:01:21]} 19. Rfa1 {[%clk 0:00:40]}  Rb8 {[%clk 0:01:21]} 20. Bc1 {[%clk 0:00:32]}  Bg7 {[%clk 0:01:18]} 21. Bd2 {[%clk 0:00:32]}  Ra6 {[%clk 0:01:11]} 22. R1a2 {[%clk 0:00:25]}  f5 {[%clk 0:01:10]} 23. Be1 {[%clk 0:00:22]}  Nf6 {[%clk 0:01:09]} 24. Bh4 {[%clk 0:00:19]}  Ne4 {[%clk 0:01:09]} 25. Nxe4 {[%clk 0:00:18]}  fxe4 {[%clk 0:01:10]} 26. Qd1 {[%clk 0:00:17]}  Rb4 {[%clk 0:01:08]} 27. Be1 {[%clk 0:00:12]}  Rb7 {[%clk 0:01:04]} 28. a5 {[%clk 0:00:12]}  Qb8 {[%clk 0:01:05]} 29. Ra1 {[%clk 0:00:07]}  Rb2 {[%clk 0:01:03]} 30. R3a2 {[%clk 0:00:07]}  Rb5 {[%clk 0:01:03]} 31. Qg4 {[%clk 0:00:06]}  Qe8 {[%clk 0:01:00]} 32. Qg5 {[%clk 0:00:05]}  Kf7 {[%clk 0:00:56]} 33. Rf2 {[%clk 0:00:04]}  Qe7 {[%clk 0:00:56]} 34. Qxe7+ {[%clk 0:00:04]}  Kxe7 {[%clk 0:00:57]} 35. Raa2 {[%clk 0:00:04]}  Rb1 {[%clk 0:00:57]} 36. Kf1 {[%clk 0:00:04]}  Bf6 {[%clk 0:00:54]} 37. Rfb2 {[%clk 0:00:04]}  Rc1 {[%clk 0:00:50]} 38. Rc2 {[%clk 0:00:03]}  Rd1 {[%clk 0:00:50]} 39. Ke2 {[%clk 0:00:02]}  Rb1 {[%clk 0:00:49]} 40. Rcb2 {[%clk 0:00:02]}  Rxb2+ {[%clk 0:00:50]} 41. Rxb2 {[%clk 0:00:02]}  g5 {[%clk 0:00:51]} 42. Rb7 {[%clk 0:00:03]}  Kd7 {[%clk 0:00:51]} 43. fxg5 {[%clk 0:00:03]}  Bxg5 {[%clk 0:00:51]} 44. Bg3 {[%clk 0:00:03]}  Bd8 {[%clk 0:00:52]} 45. Be1 {[%clk 0:00:02]}  Bf6 {[%clk 0:00:51]} 46. g4 {[%clk 0:00:00]}  e5 {[%clk 0:00:51]} 0-1


[Site "https://www.chess.com"]

[Event "Titled Tuesday Blitz May 16 Late 2023"]
[White "Tarnowska, Aleksandra"]
[Black "Mortazavi, Ali"]
[WhiteFideId "1180967"]
[BlackFideId "401323"]
[WhiteElo "1776"]
[BlackElo "2339"]
[Result "0-1"]
[Round "01"]
[TimeControl "180+2"]
[Date "2023.05.16"]
[WhiteClock "0:00:00"]
[BlackClock "0:00:49"]

1. e4 {[%clk 0:03:00]}  c6 {[%clk 0:02:59]} 2. d4 {[%clk 0:02:59]}  d5 {[%clk 0:03:00]} 3. Nc3 {[%clk 0:02:59]}  dxe4 {[%clk 0:02:59]} 4. Nxe4 {[%clk 0:03:00]}  Nf6 {[%clk 0:03:00]} 5. Nxf6+ {[%clk 0:03:00]}  exf6 {[%clk 0:03:01]} 6. Nf3 {[%clk 0:03:01]}  Bd6 {[%clk 0:03:01]} 7. Be3 {[%clk 0:03:01]}  O-O {[%clk 0:03:02]} 8. Qd2 {[%clk 0:03:02]}  Re8 {[%clk 0:02:58]} 9. Bd3 {[%clk 0:02:59]}  Bg4 {[%clk 0:02:56]} 10. h3 {[%clk 0:02:54]}  Be6 {[%clk 0:02:51]} 11. a3 {[%clk 0:02:23]}  Nd7 {[%clk 0:02:45]} 12. O-O {[%clk 0:01:50]}  Nf8 {[%clk 0:02:29]} 13. Rfe1 {[%clk 0:01:31]}  Ng6 {[%clk 0:02:27]} 14. Rad1 {[%clk 0:01:28]}  b5 {[%clk 0:02:24]} 15. Nh2 {[%clk 0:01:04]}  f5 {[%clk 0:02:15]} 16. f4 {[%clk 0:00:52]}  Bd5 {[%clk 0:01:55]} 17. g3 {[%clk 0:00:20]}  Qf6 {[%clk 0:01:54]} 18. Kf2 {[%clk 0:00:18]}  h5 {[%clk 0:01:51]} 19. Be2 {[%clk 0:00:18]}  h4 {[%clk 0:01:51]} 20. Rg1 {[%clk 0:00:15]}  Re6 {[%clk 0:01:38]} 21. g4 {[%clk 0:00:11]}  Rae8 {[%clk 0:01:38]} 22. gxf5 {[%clk 0:00:07]}  Rxe3 {[%clk 0:01:30]} 23. fxg6 {[%clk 0:00:05]}  Rxe2+ {[%clk 0:01:30]} 24. Qxe2 {[%clk 0:00:05]}  Rxe2+ {[%clk 0:01:31]} 25. Kxe2 {[%clk 0:00:06]}  Bc4+ {[%clk 0:01:29]} 26. Ke1 {[%clk 0:00:04]}  Bxf4 {[%clk 0:01:20]} 27. gxf7+ {[%clk 0:00:03]}  Qxf7 {[%clk 0:01:18]} 28. Nf3 {[%clk 0:00:03]}  Bg3+ {[%clk 0:01:17]} 29. Kd2 {[%clk 0:00:02]}  Qf4+ {[%clk 0:01:15]} 30. Kc3 {[%clk 0:00:01]}  Qxf3+ {[%clk 0:01:15]} 31. Kb4 {[%clk 0:00:01]}  Qf8+ {[%clk 0:01:09]} 32. Ka5 {[%clk 0:00:02]}  Qd8+ {[%clk 0:01:09]} 33. Kb4 {[%clk 0:00:02]}  Bc7 {[%clk 0:01:01]} 34. Kc3 {[%clk 0:00:01]}  a5 {[%clk 0:00:56]} 35. b4 {[%clk 0:00:01]}  Bg3 {[%clk 0:00:50]} 36. Rd2 {[%clk 0:00:01]}  axb4+ {[%clk 0:00:49]} 37. axb4 {[%clk 0:00:00]}  Qa8 {[%clk 0:00:49]} 0-1


[Site "https://www.chess.com"]

[Event "Titled Tuesday Blitz May 16 Late 2023"]
[White "Janaszak, Dawid"]
[Black "Horokoskii"]
[WhiteFideId "1119206"]
[WhiteElo "2220"]
[BlackElo "2149"]
[Result "1-0"]
[Round "01"]
[TimeControl "180+2"]
[Date "2023.05.16"]
[WhiteClock "0:00:33"]
[BlackClock "0:00:02"]

1. e4 {[%clk 0:03:00]}  e6 {[%clk 0:02:59]} 2. b3 {[%clk 0:02:57]}  d5 {[%clk 0:02:58]} 3. Bb2 {[%clk 0:02:57]}  Nf6 {[%clk 0:02:56]} 4. d3 {[%clk 0:02:57]}  dxe4 {[%clk 0:02:55]} 5. Nd2 {[%clk 0:02:57]}  Bb4 {[%clk 0:02:36]} 6. a3 {[%clk 0:02:57]}  Ba5 {[%clk 0:02:35]} 7. b4 {[%clk 0:02:38]}  Bb6 {[%clk 0:02:24]} 8. dxe4 {[%clk 0:02:37]}  O-O {[%clk 0:02:17]} 9. Bd3 {[%clk 0:02:35]}  Nc6 {[%clk 0:02:16]} 10. Ngf3 {[%clk 0:02:35]}  Nd4 {[%clk 0:02:13]} 11. O-O {[%clk 0:02:32]}  Nxf3+ {[%clk 0:02:03]} 12. Nxf3 {[%clk 0:02:32]}  a5 {[%clk 0:02:01]} 13. Qe2 {[%clk 0:02:28]}  axb4 {[%clk 0:01:55]} 14. axb4 {[%clk 0:02:29]}  Rxa1 {[%clk 0:01:54]} 15. Bxa1 {[%clk 0:02:29]}  h6 {[%clk 0:01:51]} 16. c4 {[%clk 0:02:25]}  c6 {[%clk 0:01:47]} 17. Rd1 {[%clk 0:02:23]}  Qe7 {[%clk 0:01:44]} 18. c5 {[%clk 0:02:24]}  Bc7 {[%clk 0:01:44]} 19. e5 {[%clk 0:02:21]}  Nd5 {[%clk 0:01:40]} 20. Qe4 {[%clk 0:02:21]}  g6 {[%clk 0:01:26]} 21. h4 {[%clk 0:02:21]}  h5 {[%clk 0:01:09]} 22. g3 {[%clk 0:02:14]}  Kg7 {[%clk 0:01:08]} 23. Kg2 {[%clk 0:02:14]}  b6 {[%clk 0:00:52]} 24. Bd4 {[%clk 0:02:09]}  Rd8 {[%clk 0:00:47]} 25. Rb1 {[%clk 0:01:59]}  bxc5 {[%clk 0:00:35]} 26. Bxc5 {[%clk 0:01:53]}  Qd7 {[%clk 0:00:34]} 27. Rc1 {[%clk 0:01:11]}  Nxb4 {[%clk 0:00:27]} 28. Bb1 {[%clk 0:00:51]}  Nd5 {[%clk 0:00:20]} 29. Ng5 {[%clk 0:00:52]}  Ba6 {[%clk 0:00:17]} 30. Kh2 {[%clk 0:00:47]}  Ne7 {[%clk 0:00:16]} 31. Ba2 {[%clk 0:00:37]}  Bb5 {[%clk 0:00:12]} 32. Qf4 {[%clk 0:00:35]}  Nf5 {[%clk 0:00:11]} 33. Ne4 {[%clk 0:00:35]}  Qd5 {[%clk 0:00:09]} 34. Bxd5 {[%clk 0:00:35]}  cxd5 {[%clk 0:00:08]} 35. Nd6 {[%clk 0:00:35]}  Nxd6 {[%clk 0:00:07]} 36. Bxd6 {[%clk 0:00:36]}  Bxd6 {[%clk 0:00:07]} 37. exd6 {[%clk 0:00:37]}  Bc4 {[%clk 0:00:07]} 38. Qd4+ {[%clk 0:00:32]}  Kf8 {[%clk 0:00:05]} 39. Qb6 {[%clk 0:00:33]}  Rc8 {[%clk 0:00:02]} 40. d7 {[%clk 0:00:33]} 1-0


[Site "https://www.chess.com"]

[Event "Titled Tuesday Blitz May 16 Late 2023"]
[White "Djordjevic, Dejan N"]
[Black "Sivakumar, Shaaketh"]
[WhiteFideId "913316"]
[BlackFideId "30940176"]
[WhiteElo "2261"]
[BlackElo "2174"]
[Result "0-1"]
[Round "01"]
[TimeControl "180+2"]
[Date "2023.05.16"]
[WhiteClock "0:00:26"]
[BlackClock "0:02:01"]

1. e4 {[%clk 0:02:43]}  e6 {[%clk 0:03:00]} 2. d3 {[%clk 0:02:42]}  d5 {[%clk 0:02:53]} 3. Nd2 {[%clk 0:02:41]}  c5 {[%clk 0:02:52]} 4. Ngf3 {[%clk 0:02:40]}  Nc6 {[%clk 0:02:52]} 5. c3 {[%clk 0:02:39]}  Nf6 {[%clk 0:02:47]} 6. g3 {[%clk 0:02:38]}  Bd6 {[%clk 0:02:46]} 7. Bg2 {[%clk 0:02:38]}  O-O {[%clk 0:02:46]} 8. O-O {[%clk 0:02:38]}  Qc7 {[%clk 0:02:47]} 9. Re1 {[%clk 0:02:38]}  Rd8 {[%clk 0:02:43]} 10. Qe2 {[%clk 0:02:35]}  Nd7 {[%clk 0:02:43]} 11. Nf1 {[%clk 0:02:34]}  b5 {[%clk 0:02:42]} 12. a4 {[%clk 0:02:33]}  b4 {[%clk 0:02:41]} 13. h4 {[%clk 0:02:31]}  Ba6 {[%clk 0:02:41]} 14. N1h2 {[%clk 0:02:22]}  Nde5 {[%clk 0:02:41]} 15. Nxe5 {[%clk 0:02:20]}  Nxe5 {[%clk 0:02:42]} 16. Rd1 {[%clk 0:02:19]}  Qa5 {[%clk 0:02:37]} 17. f4 {[%clk 0:02:18]}  Nxd3 {[%clk 0:02:34]} 18. Rxd3 {[%clk 0:02:17]}  bxc3 {[%clk 0:02:32]} 19. bxc3 {[%clk 0:02:09]}  Rab8 {[%clk 0:02:26]} 20. exd5 {[%clk 0:02:05]}  exd5 {[%clk 0:02:27]} 21. Bxd5 {[%clk 0:02:04]}  Bxd3 {[%clk 0:02:20]} 22. Qxd3 {[%clk 0:02:03]}  c4 {[%clk 0:02:21]} 23. Qxc4 {[%clk 0:01:55]}  Rbc8 {[%clk 0:02:16]} 24. Bxf7+ {[%clk 0:01:43]}  Kf8 {[%clk 0:02:17]} 25. Qa2 {[%clk 0:01:34]}  Qxc3 {[%clk 0:02:14]} 26. Nf1 {[%clk 0:01:22]}  Bc5+ {[%clk 0:02:12]} 27. Kg2 {[%clk 0:01:19]}  Qd4 {[%clk 0:02:04]} 28. Be3 {[%clk 0:01:15]}  Qe4+ {[%clk 0:02:04]} 29. Kf2 {[%clk 0:01:11]}  Bd4 {[%clk 0:02:01]} 30. Bxd4 {[%clk 0:00:26]}  Rc2+ {[%clk 0:02:01]} 0-1


[Site "https://www.chess.com"]

[Event "Titled Tuesday Blitz May 16 Late 2023"]
[White "Kev4444444444"]
[Black "Ravuri, Vinesh"]
[BlackFideId "45042632"]
[WhiteElo "2106"]
[BlackElo "2066"]
[Result "0-1"]
[Round "01"]
[TimeControl "180+2"]
[Date "2023.05.16"]
[WhiteClock "0:00:49"]
[BlackClock "0:01:59"]

1. e4 {[%clk 0:02:57]}  e5 {[%clk 0:02:58]} 2. Nf3 {[%clk 0:02:55]}  Nc6 {[%clk 0:02:58]} 3. Bc4 {[%clk 0:02:55]}  Bc5 {[%clk 0:02:58]} 4. c3 {[%clk 0:02:45]}  Nf6 {[%clk 0:02:58]} 5. d3 {[%clk 0:02:39]}  d6 {[%clk 0:02:55]} 6. O-O {[%clk 0:02:38]}  h6 {[%clk 0:02:52]} 7. h3 {[%clk 0:02:34]}  g5 {[%clk 0:02:52]} 8. b4 {[%clk 0:02:24]}  Bb6 {[%clk 0:02:52]} 9. a4 {[%clk 0:02:05]}  a5 {[%clk 0:02:50]} 10. b5 {[%clk 0:02:05]}  Ne7 {[%clk 0:02:50]} 11. Qb3 {[%clk 0:02:05]}  Rf8 {[%clk 0:02:33]} 12. Bxg5 {[%clk 0:01:47]}  hxg5 {[%clk 0:02:31]} 13. Nxg5 {[%clk 0:01:47]}  d5 {[%clk 0:02:22]} 14. exd5 {[%clk 0:01:48]}  Nfxd5 {[%clk 0:02:15]} 15. Re1 {[%clk 0:01:25]}  f6 {[%clk 0:02:08]} 16. Nh7 {[%clk 0:01:22]}  Rf7 {[%clk 0:02:08]} 17. Bxd5 {[%clk 0:01:04]}  Nxd5 {[%clk 0:02:09]} 18. Nxf6+ {[%clk 0:01:01]}  Qxf6 {[%clk 0:02:00]} 19. d4 {[%clk 0:00:49]}  Qxf2+ {[%clk 0:01:59]} 0-1


[Site "https://www.chess.com"]

[Event "Titled Tuesday Blitz May 16 Late 2023"]
[White "Erzhanov, Arman"]
[Black "Manu_ChessExcelsior"]
[WhiteFideId "4138821"]
[WhiteElo "2138"]
[BlackElo "2060"]
[Result "1-0"]
[Round "01"]
[TimeControl "180+2"]
[Date "2023.05.16"]
[WhiteClock "0:01:39"]
[BlackClock "0:00:00"]

1. e4 {[%clk 0:02:59]}  c5 {[%clk 0:02:55]} 2. Nf3 {[%clk 0:02:57]}  Nc6 {[%clk 0:02:54]} 3. Bb5 {[%clk 0:02:57]}  g6 {[%clk 0:02:54]} 4. O-O {[%clk 0:02:57]}  Bg7 {[%clk 0:02:54]} 5. c3 {[%clk 0:02:58]}  Qc7 {[%clk 0:02:42]} 6. d4 {[%clk 0:02:57]}  cxd4 {[%clk 0:02:41]} 7. cxd4 {[%clk 0:02:58]}  a6 {[%clk 0:02:39]} 8. Be2 {[%clk 0:02:54]}  d6 {[%clk 0:02:36]} 9. Nc3 {[%clk 0:02:54]}  e6 {[%clk 0:02:32]} 10. Bf4 {[%clk 0:02:51]}  Nge7 {[%clk 0:01:58]} 11. Rc1 {[%clk 0:02:51]}  O-O {[%clk 0:01:38]} 12. d5 {[%clk 0:02:49]}  e5 {[%clk 0:01:37]} 13. Bg5 {[%clk 0:02:37]}  Nd4 {[%clk 0:01:26]} 14. Nxd4 {[%clk 0:02:33]}  exd4 {[%clk 0:01:26]} 15. Na4 {[%clk 0:02:24]}  Qd8 {[%clk 0:01:12]} 16. Bxe7 {[%clk 0:02:14]}  Qxe7 {[%clk 0:01:11]} 17. Nb6 {[%clk 0:02:15]}  Rb8 {[%clk 0:01:09]} 18. f3 {[%clk 0:02:15]}  f5 {[%clk 0:00:51]} 19. Bd3 {[%clk 0:01:59]}  fxe4 {[%clk 0:00:49]} 20. fxe4 {[%clk 0:01:59]}  Rxf1+ {[%clk 0:00:47]} 21. Qxf1 {[%clk 0:02:00]}  Bg4 {[%clk 0:00:43]} 22. Qf4 {[%clk 0:01:57]}  h5 {[%clk 0:00:10]} 23. h3 {[%clk 0:01:56]}  g5 {[%clk 0:00:10]} 24. Qd2 {[%clk 0:01:52]}  Bc8 {[%clk 0:00:09]} 25. Nxc8 {[%clk 0:01:52]}  Qf6 {[%clk 0:00:07]} 26. Qf2 {[%clk 0:01:43]}  Qd8 {[%clk 0:00:04]} 27. Qf5 {[%clk 0:01:42]}  Be5 {[%clk 0:00:02]} 28. Qe6+ {[%clk 0:01:39]}  Kg7 {[%clk 0:00:00]} 29. Ne7 {[%clk 0:01:39]} 1-0


[Site "https://www.chess.com"]